Workbook

Sheet Worksheet
B2: Today's | C2: Click on color button to activate
B3: Date
B4: =TODAY() -> 2020-09-14
C6: Financial Net Worth Worksheet
C8: First Name | D8: First Name
C11: Assets:
C12: Qualified: IRA, Roth IRA, 401-K, 403-B, Annuity, etc. | F12: =$B$4 -> 2020-09-14
C13: Account | D13: Acct. Holder | E13: Held At | F13: Amount
B14: =IF(F14=0,2,1) -> 2 | C14: 401-k | D14: =$C$9 ->  | F14: 0
B15: =IF(F15=0,2,1) -> 2 | C15: IRA | F15: 0
B16: =IF(F16=0,2,1) -> 2 | C16: IRA Rollover | F16: 0
B17: 2 | C17: Roth IRA | F17: 0
B18: 2 | C18: Annuity | F18: 0
B19: 2 | C19: ?? | F19: 0
B20: 2 | C20: ?? | F20: 0
B21: 2 | C21: 401-k | D21: =$D$9 ->  | F21: 0
B22: 2 | C22: IRA | F22: 0
B23: 2 | C23: IRA Rollover | F23: 0
B24: 2 | C24: Roth IRA | F24: 0
B25: 2 | C25: Annuity | F25: 0
B26: 2 | C26: ?? | F26: 0
B27: 2 | C27: ?? | F27: 0
B28: 1 | C28: Qualified Sub-Total | F28: =SUM(F14:F27) -> 0
B29: 1
B30: 1 | C30: Non-Qualified - Non tax deferred accounts | F30: =F$12 -> 2020-09-14
B31: 1 | C31: Account | D31: Acct. Holder | E31: Held At | F31: Amount
B32: 2 | C32: Checking Account | D32: Joint | F32: 0
B33: 2 | C33: Savings Account | D33: Joint | F33: 0
B34: 2 | C34: Brokerage Account | D34: Joint | F34: 0
B35: 2 | C35: Life Insurance Cash Value | D35: =C9 ->  | F35: 0
B36: 2 | C36: Life Insurance Cash Value | D36: =D9 ->  | F36: 0
B37: 2 | C37: ?? | F37: 0
B38: 2 | C38: ?? | F38: 0
B39: 2 | C39: ?? | F39: 0
B40: 1 | C40: Non-Qualified Sub-Total | F40: =SUM(F32:F39) -> 0
B41: 1
B42: 1 | C42: Home, Cars, Vacation/Rental Property, Rec. Vehicles, + | F42: =F$12 -> 2020-09-14
B43: 1 | C43: Item | D43: Acct. Holder | E43: Held At | F43: Est'd Value
B44: 2 | C44: Home | D44: Joint | F44: 0
B45: 2 | C45: Cabin | D45: Joint | F45: 0
B46: 2 | C46: Car 1 | D46: Joint | F46: 0
B47: 2 | C47: Car 2 | D47: Joint | F47: 0
B48: 2 | C48: Boat | D48: Joint | F48: 0
B49: 2 | C49: ?? | F49: 0
B50: 2 | C50: ?? | F50: 0
B51: 2 | C51: ?? | F51: 0
B52: 1 | C52: Home, Cars, Etc. Sub-Total | F52: =SUM(F44:F51) -> 0
B53: 1
B54: 1 | C54: Liabilities:
B55: 1 | C55: Balances on mortgages, credit cards, auto/boat, loans, + | F55: =F$12 -> 2020-09-14
B56: 1 | C56: Account/Item | D56: Acct. Holder | E56: Held At | F56: Amount
B57: 2 | C57: =C44 -> Home | D57: Joint | F57: 0
B58: 2 | C58: =C45 -> Cabin | D58: Joint | F58: 0
B59: 2 | C59: Car 1 | D59: Joint | F59: 0
B60: 2 | C60: Car 2 | D60: Joint | F60: 0
B61: 2 | C61: Boat | D61: Joint | F61: 0
B62: 2 | C62: ?? | F62: 0
B63: 2 | C63: ?? | F63: 0
B64: 2 | C64: ?? | F64: 0
B65: 2 | C65: Credit Card 1 | D65: Joint | F65: 0
B66: 2 | C66: Credit Card 2 | D66: Joint | F66: 0
B67: 2 | C67: Credit Card 3 | D67: Joint | F67: 0
B68: 2 | C68: Store Credit Card A | D68: Joint | F68: 0
B69: 2 | C69: Store Credit Card B | D69: Joint | F69: 0
B70: 2 | C70: Store Credit Card C | D70: Joint | F70: 0
B71: 2 | C71: School Loan | D71: =C9 ->  | F71: 0
B72: 2 | C72: School Loan | D72: =D9 ->  | F72: 0
B73: 2 | C73: ?? | F73: 0
B74: 2 | C74: ?? | F74: 0
B75: 2 | C75: ?? | F75: 0
B76: 1 | C76: Liabilities Sub-Total | F76: =SUM(F57:F75) -> 0
B77: 1
B78: 1 | C78: Summary Assets, Liabilities, and Net Worth | F78: =F$12 -> 2020-09-14
B79: 1 | C79: =C28 -> Qualified Sub-Total | F79: =F28 -> 0
B80: 1 | C80: =C40 -> Non-Qualified Sub-Total | F80: =F40 -> 0
B81: 1 | C81: =C52 -> Home, Cars, Etc. Sub-Total | F81: =F52 -> 0
B82: 1 | C82: Total Assets | E82: + | F82: =SUM(F79:F81) -> 0
B83: 1 | C83: Total Liabilities | E83: - | F83: =F76 -> 0
B84: 1 | C84: Total Net Worth = Assets minus Liabilities | E84: = | F84: =F82-F83 -> 0
B85: 1
B86: 1 | C86: © 2020, www.lifesjourney.us, all rights reserved.
B87: 1 | C87: Use this free Financial Net Worth Worksheet at your own risk.
B88: 1 | C88: Feel free to modify worksheet to meet your own financial needs.
B89: 1 | C89: Consult with a financial, tax, legal professionals to double check your numbers and formulas before making any investment and life decisions based on worksheet information.
B90: 1 | C90: Note: if you add rows, open hidden column "B" to copy formula in "B" to allow Open "0" & Close "0" buttons to work.
B91: 1 | C91: If colored activation buttons on top do not work, then delete rows 2, 3 and 4.
B92: 1

Sheet Worksheet Example
C2: Financial Net Worth Worksheet - Example
C4: First Name | D4: First Name
C5: John | D5: Jessica
C7: Assets:
C8: Qualified: IRA, Roth IRA, 401-K, 403-B, Annuity, etc. | F8: 2020-09-14 | G8: 2020-06-30 | H8: 2020-03-30 | I8: 2020-12-31
C9: Account | D9: Acct. Holder | E9: Held At | F9: Amount | G9: Amount | H9: Amount | I9: Amount
B10: =IF(F10=0,2,1) -> 1 | C10: 401-k | D10: =$C$5 -> John | E10: Schwab | F10: 1100 | G10: 1000 | H10: 800 | I10: 1100
B11: =IF(F11=0,2,1) -> 1 | C11: IRA | D11: John | E11: Fidelity | F11: 1100 | G11: 1000 | H11: 800 | I11: 1100
B12: 1 | C12: IRA Rollover | D12: John | E12: E-Trade | F12: 1100 | G12: 1000 | H12: 800 | I12: 1100
B13: 1 | C13: Roth IRA | D13: John | E13: Schwab | F13: 1100 | G13: 1000 | H13: 800 | I13: 1100
B14: 1 | C14: Annuity | D14: John | E14: Allianz | F14: 1100 | G14: 1000 | H14: 800 | I14: 1100
B15: 2 | C15: ?? | D15: John
B16: 2 | C16: ?? | D16: John
B17: 1 | C17: 401-k | D17: =$D$5 -> Jessica | E17: Fidelity | F17: 1100 | G17: 1000 | H17: 800 | I17: 1100
B18: 1 | C18: IRA | D18: Jessica | E18: E-Trade | F18: 1100 | G18: 1000 | H18: 800 | I18: 1100
B19: 1 | C19: IRA Rollover | D19: Jessica | E19: Schwab | F19: 1100 | G19: 1000 | H19: 800 | I19: 1100
B20: 1 | C20: Roth IRA | D20: Jessica | E20: Schwab | F20: 1100 | G20: 1000 | H20: 800 | I20: 1100
B21: 1 | C21: Annuity | D21: Jessica | E21: Allianz | F21: 1100 | G21: 1000 | H21: 800 | I21: 1100
B22: 2 | C22: ?? | D22: Jessica
B23: 2 | C23: ?? | D23: Jessica
B24: 1 | C24: Qualified Sub-Total | F24: =SUM(F10:F23) -> 11000 | G24: 10000 | H24: 8000 | I24: =SUM(I10:I23) -> 11000
B25: 1
B26: 1 | C26: Non-Qualified - Non tax deferred accounts | F26: =F$8 -> 2020-09-14 | G26: =G$8 -> 2020-06-30 | H26: =H$8 -> 2020-03-30 | I26: =I$8 -> 2020-12-31
B27: 1 | C27: Account | D27: Acct. Holder | E27: Held At | F27: Amount | G27: Amount | H27: Amount | I27: Amount
B28: =IF(F28=0,2,1) -> 1 | C28: Checking Account | D28: Joint | E28: Wells Fargo | F28: 1200 | G28: 1000 | H28: 900 | I28: 900
B29: 1 | C29: Savings Account | D29: Joint | E29: Wells Fargo | F29: 1200 | G29: 1000 | H29: 900 | I29: 900
B30: 1 | C30: Brokerage Account | D30: Joint | E30: Fidelity | F30: 1100 | G30: 1000 | H30: 800 | I30: 1100
B31: 1 | C31: Life Insurance Cash Value | D31: =C5 -> John | E31: MetLife | F31: 1100 | G31: 1000 | H31: 800 | I31: 1100
B32: 1 | C32: Life Insurance Cash Value | D32: =D5 -> Jessica | E32: MetLife | F32: 1100 | G32: 1000 | H32: 800 | I32: 1100
B33: 2 | C33: ??
B34: 2 | C34: ??
B35: 2 | C35: ??
B36: 1 | C36: Non-Qualified Sub-Total | F36: =SUM(F28:F35) -> 5700 | G36: 5000 | H36: 4200 | I36: =SUM(I28:I35) -> 5100
B37: 1
B38: 1 | C38: House, Cars, Vacation/Rental Property, Rec. Vehicles, + | F38: =F$8 -> 2020-09-14 | G38: =G$8 -> 2020-06-30 | H38: =H$8 -> 2020-03-30 | I38: =I$8 -> 2020-12-31
B39: =IF(F39=0,2,1) -> 1 | C39: Item | D39: Acct. Holder | E39: Held At | F39: Est'd Value | G39: Est'd Value | H39: Est'd Value | I39: Est'd Value
B40: 1 | C40: Home | D40: Joint | E40: US Bank | F40: 100000 | G40: 100000 | H40: 100000 | I40: 100000
B41: 1 | C41: Cabin | D41: Joint | E41: US Bank | F41: 75000 | G41: 75000 | H41: 75000 | I41: 75000
B42: 1 | C42: Car 1 | D42: Joint | E42: GMC Finance | F42: 18000 | G42: 19000 | H42: 20000 | I42: 20000
B43: 1 | C43: Car 2 | D43: Joint | E43: Credit Union | F43: 9000 | G43: 9500 | H43: 10000 | I43: 10000
B44: 1 | C44: Boat | D44: Joint | E44: Credit Union | F44: 2300 | G44: 2500 | H44: 2500 | I44: 2500
B45: 2 | C45: ?? | F45: 0 | G45: 0 | H45: 0 | I45: 0
B46: 2 | C46: ?? | F46: 0 | G46: 0 | H46: 0 | I46: 0
B47: 2 | C47: ?? | F47: 0 | G47: 0 | H47: 0 | I47: 0
B48: 1 | C48: Home, Cars, Etc. Sub-Total | F48: =SUM(F40:F47) -> 204300 | G48: 206000 | H48: 207500 | I48: =SUM(I40:I47) -> 207500
B49: 1
B50: 1 | C50: Liabilities:
B51: =IF(F51=0,2,1) -> 1 | C51: Balances on mortgages, credit cards, auto/boat, loans, etc. | F51: =F$8 -> 2020-09-14 | G51: =G$8 -> 2020-06-30 | H51: =H$8 -> 2020-03-30 | I51: =I$8 -> 2020-12-31
B52: 1 | C52: Account/Item | D52: Acct. Holder | E52: Held At | F52: Amount | G52: Amount | H52: Amount | I52: Amount
B53: 1 | C53: =C40 -> Home | D53: Joint | E53: US Bank | F53: 73500 | G53: 74000 | H53: 74500 | I53: 75000
B54: 1 | C54: =C41 -> Cabin | D54: Joint | E54: US Bank | F54: 49300 | G54: 49500 | H54: 49750 | I54: 50000
B55: 1 | C55: Car 1 | D55: Joint | E55: GMC Finance | F55: 19000 | G55: 19200 | H55: 19600 | I55: 20000
B56: 1 | C56: Car 2 | D56: Joint | E56: Credit Union | F56: 2500 | G56: 2600 | H56: 2800 | I56: 3000
B57: 1 | C57: Boat | D57: Joint | E57: Credit Union | F57: 275 | G57: 280 | H57: 290 | I57: 300
B58: 2 | C58: ??
B59: 2 | C59: ??
B60: 2 | C60: ??
B61: 1 | C61: Credit Card 1 | D61: Joint | E61: Visa | F61: 300 | G61: 200 | H61: 400 | I61: 200
B62: 1 | C62: Credit Card 2 | D62: Joint | E62: Am. Express | F62: 200 | G62: 300 | H62: 200 | I62: 200
B63: 1 | C63: Credit Card 3 | D63: Joint | E63: Mastercard | F63: 200 | G63: 200 | H63: 300 | I63: 200
B64: 1 | C64: Store Credit Card A | D64: Joint | E64: Target | F64: 50 | G64: 100 | H64: 150 | I64: 100
B65: 1 | C65: Store Credit Card B | D65: Joint | E65: Kohl's | F65: 75 | G65: 200 | H65: 100 | I65: 100
B66: 2 | C66: Store Credit Card C | D66: Joint | E66: Macy's | F66: 0 | G66: 125 | H66: 100 | I66: 100
B67: 1 | C67: School Loan | D67: =C5 -> John | E67: ? | F67: 4400 | G67: 4500 | H67: 4750 | I67: 5000
B68: 1 | C68: School Loan | D68: =D5 -> Jessica | E68: ? | F68: 4400 | G68: 4500 | H68: 4750 | I68: 5000
B69: 2 | C69: ??
B70: 2 | C70: ??
B71: 2 | C71: ??
B72: 1 | C72: Liabilities Sub-Total | F72: =SUM(F53:F71) -> 154200 | G72: 155705 | H72: 157690 | I72: =SUM(I53:I71) -> 159200
B73: 1
B74: 1 | C74: Summary Assets, Liabilities, and Net Worth | F74: =F$8 -> 2020-09-14 | G74: =G$8 -> 2020-06-30 | H74: =H$8 -> 2020-03-30 | I74: =I$8 -> 2020-12-31
B75: 1 | C75: =C24 -> Qualified Sub-Total | F75: =F24 -> 11000 | G75: 10000 | H75: 8000 | I75: =I24 -> 11000
B76: 1 | C76: =C36 -> Non-Qualified Sub-Total | F76: =F36 -> 5700 | G76: 5000 | H76: 4200 | I76: =I36 -> 5100
B77: 1 | C77: =C48 -> Home, Cars, Etc. Sub-Total | F77: =F48 -> 204300 | G77: 206000 | H77: 207500 | I77: =I48 -> 207500
B78: 1 | C78: Total Assets | E78: + | F78: =SUM(F75:F77) -> 221000 | G78: 221000 | H78: 219700 | I78: =SUM(I75:I77) -> 223600
B79: 1 | C79: Total Liabilities | E79: - | F79: =F72 -> 154200 | G79: 155705 | H79: 157690 | I79: =I72 -> 159200
B80: 1 | C80: Total Net Worth = Assets minus Liabilities | E80: = | F80: =F78-F79 -> 66800 | G80: 65295 | H80: 62010 | I80: =I78-I79 -> 64400
B81: 1
B82: 1 | C82: © 2020, www.lifesjourney.us, all rights reserved.
B83: 1 | C83: Use this free Financial Net Worth Worksheet at your own risk.
B84: 1 | C84: Feel free to modify worksheet to meet your own financial needs.
B85: 1 | C85: Consult with a financial, tax, legal professionals to double check your numbers and formulas before making any investment and life decisions based on worksheet information.
B86: 1 | C86: Note: if you add rows, open hidden column "B" to copy formula in "B" to allow Open "0" & Close "0" buttons to work.
B87: 1 | C87: If colored activation buttons on top do not work, then delete rows 2, 3 and 4.
B88: 1
